fUSD/lending_fUSD_20250413
["ID","MTS","AMOUNT","RATE_DAILY","PERIOD"]
[357895454,1744528232344,-500.0,0.00019178,2]
[357895455,1744528232354,-515.96184474,0.00019178,2]
[357895456,1744528232363,-611.45966093,0.00019178,2]
[357895457,1744528232372,-519.73344636,0.00019178,2]
[357895458,1744528232381,-519.6640521,0.00019178,2]
[357895459,1744528232391,-494.0,0.00019178,2]
[357895460,1744528232400,-526.66783637,0.00019178,2]
[357895461,1744528232409,-376.87014625,0.00019178,2]
[357895462,1744528232419,-504.66803821,0.00019178,2]
[357895463,1744528232428,-510.92877225,0.00019178,2]
[357895464,1744528232438,-508.56728275,0.00019178,2]
[357895465,1744528232447,-512.89,0.00019178,2]
[357895466,1744528232457,-513.16945588,0.00019178,2]
[357895467,1744528232467,-509.56008857,0.00019178,2]
[357895468,1744528232476,-517.17843072,0.00019178,2]
[357895469,1744528232485,-526.04702943,0.00019178,2]
[357895470,1744528232494,-512.4691138,0.00019178,2]
[357895471,1744528232504,-290.29028457,0.00019178,2]
[357895472,1744528232514,-503.63479843,0.00019178,2]
[357895473,1744528232523,-510.69066302,0.00019178,2]
[357895474,1744528232532,-505.54501509,0.00019178,2]
[357895475,1744528232542,-504.52010485,0.00019178,2]
[357895476,1744528232551,-511.31496115,0.00019178,2]
[357895477,1744528232560,-511.07183091,0.00019178,2]
[357895478,1744528232570,-513.00097821,0.00019178,2]
[357895479,1744528232579,-518.36251435,0.00019178,2]
[357895480,1744528232589,-500.0,0.00019178,2]
[357895481,1744528232598,-386.73090513,0.00019178,2]
[357895483,1744528237771,-27.43683773,0.00019178,2]
[357895484,1744528237780,-409.88846397,0.00019178,2]
[357895485,1744528238017,-90.11153603,0.00019178,2]
[357895486,1744528238027,-500.0,0.00019178,2]
[357895487,1744528238036,-171.28758448,0.00019178,2]
[357895488,1744528238050,-328.71241552,0.00019178,2]
[357895489,1744528238059,-1399.93758448,0.00019178,2]
[357895490,1744528238071,-7898.96241552,0.00019178,2]
[357895491,1744528238080,-500.0,0.00019178,2]
[357895492,1744528238091,-513.04,0.00019178,2]
[357895493,1744528238100,-500.0,0.00019178,2]
[357895494,1744528238110,-1075.89,0.00019178,2]
[357895496,1744528238119,-506.78,0.00019178,2]
[357895498,1744528238128,-500.0,0.00019178,2]
[357895499,1744528238137,-500.0,0.00019178,2]
[357895501,1744528238147,-500.0,0.00019178,2]
[357895503,1744528238156,-222.2301963,0.00019178,2]
[357895505,1744528238165,-500.0,0.00019178,2]
[357895507,1744528238175,-500.0,0.00019178,2]
[357895509,1744528238184,-981.33,0.00019178,2]
[357895511,1744528238193,-733.33718755,0.00019178,2]
[357895513,1744528238205,-547.99281245,0.00019178,2]
[357895515,1744528238214,-73.88573017,0.00019178,2]
[357895562,1744528239974,-166.92696844,0.00019178,2]
[357895563,1744528239984,-500.0,0.00019178,2]
[357895564,1744528239993,-500.50728245,0.00019178,2]
[357895565,1744528240003,-466.12380549,0.00019178,2]
[357895566,1744528240011,-500.0,0.00019178,2]
[357895567,1744528240021,-354.14668587,0.00019395,2]
[357895568,1744528240029,-500.0,0.00019452,2]
[357895569,1744528240038,-500.0,0.00019452,2]
[357895570,1744528240051,-500.0,0.00019452,2]
[357895571,1744528240060,-500.0,0.00019452,2]
[357895572,1744528240069,-9298.9,0.00019452,2]
[357895573,1744528240079,-513.04,0.00019452,2]
[357895574,1744528240090,-500.0,0.00019452,2]
[357895575,1744528240099,-1075.89,0.00019452,2]
[357895576,1744528240108,-506.78,0.00019452,2]
[357895577,1744528240118,-556.75633928,0.00019452,2]
[357895578,1744528240128,-500.0,0.00019452,2]
[357895579,1744528240138,-500.0,0.00019452,2]
[357895580,1744528240150,-981.33,0.00019452,2]
[357895581,1744528240160,-359.34891847,0.00019452,2]
[357895586,1744528242373,-0.00279353,0.00019452,2]
[357895587,1744528242390,-921.978288,0.00019452,2]
[357895588,1744528242400,-500.0,0.00019452,2]
[357895589,1744528242409,-1000.0,0.000196,2]
[357895590,1744528242419,-500.0,0.00019699,2]
[357895591,1744528242428,-500.0,0.00019699,2]
[357895592,1744528242438,-500.0,0.00019699,2]
[357895594,1744528242448,-78.021712,0.00019699,2]
[357895627,1744528244618,-320.99686609,0.00019699,2]
[357895628,1744528244627,-134.06410021,0.000197,2]
[357895629,1744528245607,-330.96594672,0.000197,2]
[357895630,1744528245620,-3027.59105932,0.000197,2]
[357895631,1744528245629,-454.45622062,0.0001971,2]
[357895632,1744528245640,-2295.38749337,0.0001971,2]
[357895633,1744528245859,-371.93031162,0.0001971,2]
[357895634,1744528245872,-223.39997439,0.0001971,2]
[357895635,1744528245881,-57.60002561,0.00019726,2]
[357895636,1744528245893,-442.39997439,0.00019726,2]
[357895637,1744528245902,-492.00079678,0.00019726,2]
[357895638,1744528245914,-7.99920322,0.00019726,2]
[357895639,1744528245926,-500.0,0.00019726,2]
[357895640,1744528245935,-500.0,0.00019726,2]
[357895641,1744528245945,-9298.9,0.00019726,2]
[357895642,1744528245954,-513.04,0.00019726,2]
[357895643,1744528245963,-500.0,0.00019726,2]
[357895644,1744528245972,-1075.89,0.00019726,2]
[357895645,1744528245982,-506.78,0.00019726,2]
[357895646,1744528245993,-500.0,0.00019726,2]
[357895647,1744528246002,-500.0,0.00019726,2]
[357895648,1744528246012,-981.33,0.00019726,2]
[357895649,1744528246021,-1281.33,0.00019726,2]
[357895650,1744528246030,-500.0,0.00019726,2]
[357895651,1744528246039,-500.0,0.00019809,2]
[357895652,1744528246050,-505.817,0.000199,2]
[357895653,1744528246059,-7452.0545,0.000199,2]
[357895654,1744528246068,-4597.5645,0.000199,2]
[357895655,1744528246078,-1230.60012324,0.000199,2]
[357895656,1744528246091,-247.84251664,0.000199,2]
[357895657,1744528246101,-247.84251659,0.000199,2]
[357895658,1744528246110,-247.84251659,0.000199,2]
[357895659,1744528246129,-247.84251659,0.000199,2]
[357895660,1744528246142,-247.84251659,0.000199,2]
[357895661,1744528246151,-247.84251659,0.000199,2]
[357895662,1744528246161,-247.84251659,0.000199,2]
[357895663,1744528246171,-247.84251659,0.000199,2]
[357895664,1744528246181,-247.84251659,0.000199,2]
[357895665,1744528246190,-247.84251659,0.000199,2]
[357895666,1744528246200,-247.84251659,0.000199,2]
[357895668,1744528246210,-247.84251659,0.000199,2]
[357895669,1744528246220,-247.84251659,0.000199,2]
[357895670,1744528246230,-247.84251659,0.000199,2]
[357895671,1744528246240,-247.84251659,0.000199,2]
[357895672,1744528246251,-247.84251659,0.000199,2]
[357895673,1744528246260,-247.84251659,0.000199,2]
[357895674,1744528246270,-247.84251659,0.000199,2]
[357895675,1744528246280,-247.84251659,0.000199,2]
[357895676,1744528246290,-247.84251659,0.000199,2]
[357895677,1744528246300,-500.0,0.00019973,2]
[357895678,1744528246311,-500.0,0.00019973,2]
[357895679,1744528246320,-500.0,0.00019973,2]
[357895680,1744528246330,-30275.88616514,0.00019985,2]
[357895681,1744528246342,-2788.8512306,0.00019986,2]
[357895682,1744528246352,-4315.1541305,0.00019986,2]
[357895683,1744528246361,-1073.8184151,0.00019986,2]
[357895684,1744528246372,-591.22541601,0.00019986,2]
[357895685,1744528246382,-18262.4177758,0.00019986,2]
[357895686,1744528246392,-362.32,0.00019999,2]
[357895687,1744528246401,-877.0,0.0002,2]
[357895688,1744528246411,-259.67679644,0.0002,2]
[357895689,1744528246421,-44879.46300276,0.0002,2]
[357895690,1744528246434,-195931.3921542,0.0002,2]
[357895691,1744528246445,-56979.91264413,0.0002,2]
[357895692,1744528246457,-45707.421,0.0002,2]
[357895693,1744528246469,-27657.16378,0.0002,2]
[357895694,1744528246480,-20590.70074111,0.0002,2]
[357895695,1744528246492,-95240.82297166,0.0002,2]
[357895696,1744528246503,-12847.83824124,0.0002,2]
[357895697,1744528314876,155.551451,0.0003,30]
[357895699,1744528367846,283.36916594,0.00017713,2]
[357895700,1744528368645,-468.62518637,0.00017713,2]
[357895701,1744528732195,-183.47564769,0.00017713,2]
[357895702,1744528732221,-179.00811263,0.00018282,2]
[357895703,1744528773959,-2084.84649258,0.0001819,2]
[357895704,1744528793814,-299.81585527,0.00018182,2]
[357895705,1744528816223,-266.87529628,0.00018172,2]
[357895706,1744528848981,-169.2879,0.00018081,2]
[357895707,1744528908480,-150.0,0.00018072,2]
[357895709,1744529003703,-230.82,0.00018081,2]
[357895710,1744529019122,-230.82,0.00018072,2]
[357895711,1744529029693,2721.94097257,0.0003,31]
[357895716,1744529110303,2129.84125236,0.000154,2]
[357895717,1744529110333,599.59509132,0.000154,2]
[357895718,1744529111487,-199.34967556,0.00018172,2]
[357895719,1744529111534,-30.63032444,0.00018282,2]
[357895720,1744529127475,2788.76450761,0.00011,2]
[357895721,1744529136197,5081.11506514,9e-05,2]
[357895722,1744529154554,5702.38123122,6.94e-05,2]
[357895723,1744529159505,-519.10548673,0.0001819,2]
[357895724,1744529162423,22748.01831131,8e-05,2]
[357895725,1744529166772,2978.32365334,8e-05,2]
[357895726,1744529200994,-299.75199076,0.0001819,2]
[357895730,1744529226276,1239.0445,0.000153,2]
[357895731,1744529233571,208.571,0.00015,2]
[357895732,1744529233595,2047.3839566,0.00015,2]
[357895733,1744529268098,-5214.395554,0.00018132,2]
[357895734,1744529268123,-2431.47969868,0.00018182,2]
[357895735,1744529268150,-300.0,0.00018223,2]
[357895736,1744529268179,-23900.0,0.00018224,2]
[357895737,1744529268204,-402.23156293,0.00018282,2]
[357895738,1744529268227,-169.67,0.00018325,2]
[357895739,1744529268252,-250.0,0.00018345,2]
[357895740,1744529268275,-362.49,0.00018356,2]
[357895741,1744529268301,-312.14173191,0.00018785,2]
[357895742,1744529268324,-312.1417319,0.00018843,2]
[357895743,1744529268350,-312.1417319,0.00018901,2]
[357895744,1744529268375,-314.43,0.00018911,2]
[357895745,1744529268401,-314.43,0.00018916,2]
[357895746,1744529268427,-314.43,0.00018921,2]
[357895747,1744529268451,-314.43,0.00018926,2]
[357895748,1744529268476,-314.43,0.00018931,2]
[357895749,1744529268502,-314.43,0.00018936,2]
[357895750,1744529268526,-314.43,0.00018941,2]
[357895751,1744529268550,-314.43,0.00018946,2]
[357895752,1744529268575,-314.43,0.00018951,2]
[357895753,1744529268601,-314.43,0.00018956,2]
[357895754,1744529268626,-314.43,0.00018961,2]
[357895755,1744529268650,-314.43,0.00018966,2]
[357895756,1744529268674,-314.43,0.00018971,2]
[357895757,1744529268697,-314.43,0.00018976,2]
[357895758,1744529268720,-572.0,0.0001898,2]
[357895759,1744529268744,-314.43,0.0001898,2]
[357895760,1744529268768,-3310.2566,0.00018982,2]
[357895761,1744529268792,-314.43,0.00018985,2]
[357895762,1744529268817,-314.43,0.0001899,2]
[357895763,1744529268842,-314.43,0.00018995,2]
[357895764,1744529268865,-860.37011494,0.00018999,2]
[357895765,1744529268890,-6531.66,0.00019,2]
[357895766,1744529268916,-6531.66,0.00019,2]
[357895767,1744529268940,-6531.66,0.00019,2]
[357895768,1744529268964,-6531.66,0.00019,2]
[357895769,1744529268987,-6531.66,0.00019,2]
[357895770,1744529269011,-20804.4061099,0.00019,2]
[357895772,1744529276291,17702.54291082,0.0001,2]
[357895773,1744529286714,1193.84308419,9.5e-05,2]
[357895774,1744529294919,9929.81028031,0.0001439,2]
[357895775,1744529305846,1862.41901203,0.0001,2]
[357895776,1744529313364,9232.25919479,9.828e-05,2]
[357895778,1744529316650,2934.97361108,0.000149,2]
[357895779,1744529326227,6051.55188612,0.00013368,2]
[357895801,1744529431820,-314.43,0.00019,2]
[357895802,1744529431830,-314.43,0.00019005,2]
[357895803,1744529431840,-1000.0,0.0001902,2]
[357895804,1744529431849,-189.2185068,0.00019081,2]
[357895805,1744529431879,-110.7814932,0.00019081,2]
[357895806,1744529431889,-158.6185068,0.00019082,2]
[357895807,1744529432015,-605.34661736,0.00019082,2]
[357895808,1744529432027,-38199.99999998,0.00019082,2]
[357895809,1744529432038,-317.10508839,0.00019082,2]
[357895810,1744529432055,-572.0,0.00019082,2]
[357895811,1744529432100,-6555.84190231,0.00019082,2]
[357895812,1744529432112,-801.55787029,0.00019082,2]
[357895813,1744529432121,-1000.0,0.00019122,2]
[357895814,1744529432131,-500.0,0.00019178,2]
[357895815,1744529432141,-500.0,0.00019178,2]
[357895816,1744529432150,-465.96578661,0.00019178,2]
[357895863,1744529437925,-34.03421339,0.00019178,2]
[357895864,1744529437945,-500.0,0.00019178,2]
[357895865,1744529437956,-8465.66,0.00019178,2]
[357895866,1744529437966,-500.0,0.00019178,2]
[357895867,1744529437976,-500.0,0.00019178,2]
[357895868,1744529437986,-986.23,0.00019178,2]
[357895869,1744529437996,-500.0,0.00019178,2]
[357895870,1744529438005,-500.0,0.00019178,2]
[357895871,1744529438015,-500.0,0.00019178,2]
[357895872,1744529438025,-500.0,0.00019178,2]
[357895873,1744529438035,-222.2301963,0.00019178,2]
[357895874,1744529438045,-500.0,0.00019178,2]
[357895875,1744529438054,-500.0,0.00019178,2]
[357895876,1744529438064,-500.0,0.00019178,2]
[357895877,1744529438074,-899.56,0.00019178,2]
[357895878,1744529438083,-752.20709305,0.00019178,2]
[357895879,1744529438096,-384.57,0.00019178,2]
[357895880,1744529438112,-14.94290695,0.00019178,2]
[357895881,1744529438121,-500.0,0.00019178,2]
[357895882,1744529438131,-696.8021849,0.00019399,2]
[357895883,1744529438140,-567.929999,0.00019452,2]
[357895884,1744529438150,-500.0,0.00019452,2]
[357895885,1744529438159,-500.0,0.00019452,2]
[357895886,1744529438169,-500.0,0.00019452,2]
[357895887,1744529438178,-8465.66,0.00019452,2]
[357895888,1744529438187,-500.0,0.00019452,2]
[357895889,1744529438197,-986.23,0.00019452,2]
[357895890,1744529438206,-500.0,0.00019452,2]
[357895891,1744529438216,-500.0,0.00019452,2]
[357895892,1744529438226,-500.0,0.00019452,2]
[357895893,1744529438235,-500.0,0.00019452,2]
[357895894,1744529438245,-200.00470852,0.00019452,2]
[357896053,1744529440232,-699.55529148,0.00019452,2]
[357896055,1744529440245,-1151.72,0.00019452,2]
[357896057,1744529440257,-500.0,0.00019452,2]
[357896059,1744529440268,-250.0,0.00019484,2]
[357896062,1744529440278,-359.56150852,0.00019726,2]
[357896064,1744529440292,-140.43849148,0.00019726,2]
[357896066,1744529440303,-169.1826585,0.00019726,2]
[357896480,1744529445004,-330.8173415,0.00019726,2]
[357896482,1744529445015,-500.0,0.00019726,2]
[357896484,1744529445025,-2885.5965505,0.00019726,2]
[357896550,1744529446425,-379.18840492,0.00019726,2]
[357896557,1744529566970,320.0,0.00032,120]
[357896558,1744529569904,-169.02537182,0.00018252,2]
[357896559,1744529577355,324.0,0.00032,120]
[357896560,1744529589020,315.0,0.00032,120]
[357896562,1744529714194,-587.92693218,0.00018252,2]
[357896563,1744529716373,290.66,0.0003,30]
[357896564,1744529777899,152.0,0.0003,30]
[357896569,1744530341869,228.36,0.00015287,2]
[357896575,1744530438414,912.12,0.00017291,2]
[357896582,1744530632011,-250.0,0.00019,2]
[357896583,1744530632021,-40.3,0.00019177,2]
[357896584,1744530632247,-259.7,0.00019177,2]
[357896585,1744530632257,-500.0,0.00019178,2]
[357896586,1744530632266,-409.76043035,0.00019178,2]
[357896587,1744530632279,-515.39828705,0.00019178,2]
[357896588,1744530632288,-500.0,0.00019178,2]
[357896589,1744530632297,-567.929999,0.00019178,2]
[357896590,1744530632307,-324.61924534,0.00019178,2]
[357896591,1744530632316,-500.0,0.00019178,2]
[357896592,1744530632326,-938.76345043,0.00019178,2]
[357896599,1744530638131,-5433.11654957,0.00019178,2]
[357896600,1744530638141,-500.0,0.00019178,2]
[357896601,1744530638150,-500.0,0.00019178,2]
[357896602,1744530638159,-500.0,0.00019178,2]
[357896603,1744530638168,-500.0,0.00019178,2]
[357896604,1744530638177,-500.0,0.00019178,2]
[357896605,1744530638186,-219.56109506,0.00019178,2]
[357896606,1744530638195,-500.0,0.00019178,2]
[357896607,1744530638204,-500.0,0.00019178,2]
[357896608,1744530638215,-500.0,0.00019178,2]
[357896609,1744530638224,-500.0,0.00019178,2]
[357896610,1744530638233,-945.14,0.00019178,2]
[357896611,1744530638242,-500.0,0.00019178,2]
[357896612,1744530638251,-832.93,0.00019178,2]
[357896613,1744530638260,-500.0,0.00019178,2]
[357896614,1744530638269,-1056.36,0.00019178,2]
[357896615,1744530638278,-1980.34014774,0.00019178,2]
[357896616,1744530638290,-102.98985226,0.00019178,2]
[357896617,1744530638299,-500.0,0.00019178,2]
[357896618,1744530638308,-237.63474249,0.00019178,2]
[357896619,1744530638317,-196.83268159,0.00019178,2]
[357896620,1744530638355,-303.16731841,0.00019178,2]
[357896621,1744530638364,-157.30447852,0.00019209,2]
[357896675,1744530647302,-622.77552148,0.00019209,2]
[357896676,1744530647312,-165.61,0.00019244,2]
[357896677,1744530647321,-305.93,0.00019296,2]
[357896678,1744530647330,-1000.0,0.00019348,2]
[357896679,1744530647340,-696.8021849,0.00019399,2]
[357896680,1744530647350,-560.71,0.00019407,2]
[357896681,1744530647359,-500.0,0.00019452,2]
[357896682,1744530647368,-6371.88,0.00019452,2]
[357896683,1744530647378,-500.0,0.00019452,2]
[357896684,1744530647388,-500.0,0.00019452,2]
[357896685,1744530647398,-500.0,0.00019452,2]
[357896686,1744530647407,-500.0,0.00019452,2]
[357896687,1744530647416,-500.0,0.00019452,2]
[357896688,1744530647425,-500.0,0.00019452,2]
[357896689,1744530647435,-945.14,0.00019452,2]
[357896690,1744530647446,-500.0,0.00019452,2]
[357896691,1744530647455,-832.93,0.00019452,2]
[357896692,1744530647464,-1056.36,0.00019452,2]
[357896693,1744530647474,-2083.33,0.00019452,2]
[357896694,1744530647485,-500.0,0.00019452,2]
[357896695,1744530647495,-614.99835066,0.00019452,2]
[357896696,1744530647504,-912.12,0.00019555,2]
[357896697,1744530647514,-500.0,0.00019726,2]
[357896698,1744530647524,-6371.88,0.00019726,2]
[357896699,1744530647534,-500.0,0.00019726,2]
[357896700,1744530647543,-500.0,0.00019726,2]
[357896701,1744530647555,-500.0,0.00019726,2]
[357896702,1744530647565,-544.93126776,0.00019726,2]
[357896703,1744530647575,-500.0,0.00019726,2]
[357896704,1744530647584,-500.0,0.00019726,2]
[357896705,1744530647593,-945.14,0.00019726,2]
[357896706,1744530647603,-500.0,0.00019726,2]
[357896707,1744530647612,-832.93,0.00019726,2]
[357896708,1744530647622,-1056.36,0.00019726,2]
[357896709,1744530647631,-2083.33,0.00019726,2]
[357896710,1744530647641,-500.0,0.00019726,2]
[357896711,1744530647650,-10030.0,0.00019811,2]
[357896712,1744530647659,-617.785,0.0001982,2]
[357896713,1744530647669,-176.36,0.00019826,2]
[357896714,1744530647679,-1124.5282,0.00019886,2]
[357896715,1744530647688,-6244.5784,0.000199,2]
[357896716,1744530647697,-3489.24890295,0.000199,2]
[357896717,1744530647707,-650.61279184,0.000199,2]
[357896718,1744530647717,-582.76,0.00019973,2]
[357896719,1744530647726,-907.0,0.00019973,2]
[357896720,1744530647736,-167.889,0.00019973,2]
[357896721,1744530647745,-409.861,0.00019973,2]
[357896722,1744530647755,-575.0,0.00019973,2]
[357896723,1744530647763,-150.0,0.00019973,2]
[357896724,1744530647773,-155.0,0.00019973,2]
[357896725,1744530647782,-152.0,0.00019973,2]
[357896726,1744530647791,-1122.0,0.00019973,2]
[357896727,1744530647801,-150.208,0.00019973,2]
[357896728,1744530647812,-500.0,0.00019973,2]
[357896729,1744530647821,-15137.94308257,0.00019986,2]
[357896730,1744530647831,-764.0986752,0.00019986,2]
[357896731,1744530647841,-13350.8140279,0.00019986,2]
[357896732,1744530647851,-3066.43458,0.00019986,2]
[357896733,1744530647860,-3250.0,0.0001999,2]
[357896734,1744530647870,-798.0,0.0002,2]
[357896735,1744530647879,-259.67679644,0.0002,2]
[357896736,1744530647890,-235290.29677688,0.0002,2]
[357896737,1744530647937,-2423.61130634,0.0002,2]
[357896738,1744530647948,-782.067846,0.0002,2]
[357896739,1744530647959,-13855.23518667,0.0002,2]
[357896740,1744530721710,350.0,0.00019289,12]
[357896741,1744530721793,350.0,0.00019531,12]
[357896745,1744531097842,511.438,0.00027,120]
[357896746,1744531101534,4124.89200859,0.00018,2]
[357896747,1744531209525,150.3682,0.0003,30]
[357896748,1744531224568,208.57,0.00016712,2]
[357896751,1744531536246,1024.06,0.00017261,2]
[357896757,1744531832651,-250.0,0.00019,2]
[357896758,1744531832661,-381.32,0.00019088,2]
[357896759,1744531832676,-618.68,0.00019088,2]
[357896760,1744531832686,-300.0,0.00019177,2]
[357896761,1744531832695,-500.0,0.00019178,2]
[357896762,1744531832705,-500.0,0.00019178,2]
[357896763,1744531832714,-500.0,0.00019178,2]
[357896764,1744531832723,-500.0,0.00019178,2]
[357896765,1744531832732,-500.0,0.00019178,2]
[357896766,1744531832741,-7993.8,0.00019178,2]
[357896767,1744531832751,-500.0,0.00019178,2]
[357896768,1744531832760,-219.56109506,0.00019178,2]
[357896769,1744531832770,-500.0,0.00019178,2]
[357896770,1744531832779,-500.0,0.00019178,2]
[357896771,1744531832788,-866.38,0.00019178,2]
[357896772,1744531832797,-500.0,0.00019178,2]
[357896773,1744531832806,-500.0,0.00019178,2]
[357896774,1744531832814,-500.0,0.00019178,2]
[357896775,1744531832823,-500.0,0.00019178,2]
[357896776,1744531832832,-1905.43,0.00019178,2]
[357896777,1744531832842,-500.0,0.00019178,2]
[357896778,1744531832851,-763.52,0.00019178,2]
[357896779,1744531832860,-968.33,0.00019178,2]
[357896780,1744531832869,-37944.33565301,0.00019178,2]
[357896781,1744531832878,-250.0,0.00019179,2]
[357896782,1744531832888,-152.96,0.00019293,2]
[357896783,1744531832897,-356.17,0.00019305,2]
[357896784,1744531832907,-522.6016387,0.00019399,2]
[357896785,1744531832916,-352.9,0.00019415,2]
[357896786,1744531832925,-584.7582909,0.00019452,2]
[357896787,1744531832934,-500.0,0.00019452,2]
[357896788,1744531832944,-500.0,0.00019452,2]
[357896789,1744531832953,-7993.8,0.00019452,2]
[357896790,1744531832962,-500.0,0.00019452,2]
[357896791,1744531832971,-866.38,0.00019452,2]
[357896792,1744531832979,-500.0,0.00019452,2]
[357896793,1744531832988,-500.0,0.00019452,2]
[357896794,1744531832997,-1905.43,0.00019452,2]
[357896795,1744531833007,-500.0,0.00019452,2]
[357896796,1744531833016,-763.52,0.00019452,2]
[357896797,1744531833026,-968.33,0.00019452,2]
[357896798,1744531833036,-150.0,0.00019482,2]
[357896799,1744531833046,-1024.06,0.00019525,2]
[357896800,1744531833055,-183.25,0.00019689,2]
[357896801,1744531833065,-3909.92392796,0.000197,2]
[357896802,1744531833074,-500.0,0.00019726,2]
[357896803,1744531833083,-500.0,0.00019726,2]
[357896804,1744531833093,-2287.74639439,0.00019726,2]
[357896806,1744531838249,-5706.05360561,0.00019726,2]
[357896807,1744531838259,-500.0,0.00019726,2]
[357896808,1744531838270,-866.38,0.00019726,2]
[357896809,1744531838280,-500.0,0.00019726,2]
[357896811,1744531838290,-500.0,0.00019726,2]
[357896812,1744531838299,-388.24143044,0.00019726,2]
[357896813,1744531838308,-1905.43,0.00019726,2]
[357896814,1744531838317,-500.0,0.00019726,2]
[357896815,1744531838326,-763.52,0.00019726,2]
[357896816,1744531838335,-968.33,0.00019726,2]
[357896817,1744531838344,-1120.0,0.00019726,2]
[357896818,1744531838353,-494.228,0.00019811,2]
[357896819,1744531838362,-500.0,0.000199,2]
[357896820,1744531838371,-235.6225,0.000199,2]
[357896821,1744531838381,-749.491,0.000199,2]
[357896822,1744531838390,-270.15125632,0.000199,2]
[357896823,1744531838414,-4666.50000006,0.000199,2]
[357896824,1744531838424,-2136.74688823,0.000199,2]
[357896825,1744531838591,-399.77425003,0.000199,2]
[357896826,1744531838603,-497.75690536,0.000199,2]
[357896827,1744531838612,-1325.52388426,0.000199,2]
[357896828,1744531838623,-4614.51994483,0.000199,2]
[357896829,1744531838632,-634.63163313,0.000199,2]
[357896830,1744531838641,-1572.9324081,0.000199,2]
[357896831,1744531838650,-150.0,0.00019973,2]
[357896833,1744531838659,-500.0,0.00019973,2]
[357896835,1744531838669,-500.0,0.00019973,2]
[357896837,1744531838678,-3102.7987709,0.00019986,2]
[357896839,1744531838687,-685.6209494,0.00019986,2]
[357896841,1744531838696,-170.5294056,0.00019986,2]
[357896843,1744531838706,-717.0,0.0002,2]
[357896845,1744531838715,-7289.5053088,0.0002,2]
[357896998,1744531840546,-1220.97013453,0.0002,2]
[357897008,1744531840639,-4000.0,0.0002,2]
[357897019,1744531840729,-500.0,0.0002,2]
[357897042,1744531840948,-449.96058331,0.0002,2]
[357897295,1744531843261,-1120.60021825,0.0002,2]
[357897304,1744531843331,-67987.93529639,0.0002,2]
[357897306,1744531843341,-649.0,0.0002,2]
[357897308,1744531843351,-260220.27053582,0.0002,2]
[357897449,1744531844923,-6735.58384872,0.0002,2]
[357897451,1744531844934,-1986.82732598,0.0002,2]
[357897564,1744531846516,-494.42052,0.0002,2]
[357897565,1744531846527,-2844.54891467,0.0002,2]
[357897566,1744531846606,-9068.4486635,0.0002,2]
[357897707,1744531903259,1159.47502371,0.00019999,5]
[357897721,1744532394256,10000.0,0.00032,120]
[357897722,1744532441908,-217.22693713,0.00019078,2]
[357897723,1744532441930,-300.0,0.00019177,2]
[357897724,1744532441950,-500.0,0.00019178,2]
[357897725,1744532441971,-699.89,0.00019178,2]
[357897726,1744532441992,-500.0,0.00019178,2]
[357897727,1744532442014,-500.0,0.00019178,2]
[357897728,1744532442035,-887.64,0.00019178,2]
[357897729,1744532442057,-1768.18,0.00019178,2]
[357897730,1744532442078,-500.0,0.00019178,2]
[357897731,1744532442099,-559.94248724,0.00019178,2]
[357897732,1744532442120,-524.09989761,0.00019178,2]